[Event "Titled Tuesday Blitz December 13 Early 2022"]
[White "Makhnev, Denis"]
[Black "Timofeev, Artyom"]
[WhiteFideId "13707647"]
[BlackFideId "4140419"]
[WhiteElo "2507"]
[BlackElo "2586"]
[Result "1/2-1/2"]
[Round "07"]
[TimeControl "180+1"]
[Date "2022.12.13"]
[WhiteClock "0:00:02"]
[BlackClock "0:00:03"]

1. d4 {[%clk 0:03:00]}  d5 {[%clk 0:02:59]} 2. c4 {[%clk 0:03:01]}  e6 {[%clk 0:02:59]} 3. Nf3 {[%clk 0:03:01]}  c6 {[%clk 0:02:59]} 4. Qc2 {[%clk 0:02:59]}  Nf6 {[%clk 0:02:58]} 5. Nbd2 {[%clk 0:02:57]}  Be7 {[%clk 0:02:50]} 6. e4 {[%clk 0:02:56]}  O-O {[%clk 0:02:49]} 7. e5 {[%clk 0:02:55]}  Nfd7 {[%clk 0:02:49]} 8. Bd3 {[%clk 0:02:55]}  h6 {[%clk 0:02:49]} 9. O-O {[%clk 0:02:36]}  c5 {[%clk 0:02:48]} 10. cxd5 {[%clk 0:02:24]}  exd5 {[%clk 0:02:48]} 11. dxc5 {[%clk 0:02:24]}  Nc6 {[%clk 0:02:48]} 12. Re1 {[%clk 0:02:14]}  Nxc5 {[%clk 0:02:47]} 13. a3 {[%clk 0:02:13]}  Bg4 {[%clk 0:02:46]} 14. b4 {[%clk 0:02:12]}  Ne6 {[%clk 0:02:36]} 15. Bb2 {[%clk 0:02:11]}  Rc8 {[%clk 0:02:35]} 16. Qb3 {[%clk 0:02:11]}  a5 {[%clk 0:02:24]} 17. b5 {[%clk 0:02:11]}  Nc5 {[%clk 0:02:23]} 18. Qc2 {[%clk 0:02:11]}  Bxf3 {[%clk 0:02:00]} 19. Nxf3 {[%clk 0:02:05]}  Nb8 {[%clk 0:02:00]} 20. Bh7+ {[%clk 0:01:56]}  Kh8 {[%clk 0:02:00]} 21. Bf5 {[%clk 0:01:57]}  Nbd7 {[%clk 0:02:00]} 22. Qd1 {[%clk 0:01:52]}  Qb6 {[%clk 0:01:52]} 23. a4 {[%clk 0:01:45]}  Ne6 {[%clk 0:01:35]} 24. Qxd5 {[%clk 0:01:38]}  Ndc5 {[%clk 0:01:36]} 25. Bc2 {[%clk 0:00:59]}  Rfd8 {[%clk 0:01:33]} 26. Qc4 {[%clk 0:01:00]}  Nd3 {[%clk 0:01:28]} 27. Bxd3 {[%clk 0:00:43]}  Rxc4 {[%clk 0:01:27]} 28. Bxc4 {[%clk 0:00:44]}  Bc5 {[%clk 0:01:27]} 29. Rf1 {[%clk 0:00:45]}  Qc7 {[%clk 0:01:05]} 30. Rac1 {[%clk 0:00:42]}  Qe7 {[%clk 0:01:05]} 31. Rfd1 {[%clk 0:00:37]}  Rxd1+ {[%clk 0:01:04]} 32. Rxd1 {[%clk 0:00:37]}  b6 {[%clk 0:01:04]} 33. g3 {[%clk 0:00:36]}  Ba3 {[%clk 0:00:56]} 34. Bd4 {[%clk 0:00:23]}  Qb4 {[%clk 0:00:47]} 35. Be2 {[%clk 0:00:13]}  Qxa4 {[%clk 0:00:35]} 36. Bxb6 {[%clk 0:00:13]}  Bc5 {[%clk 0:00:35]} 37. Bxc5 {[%clk 0:00:10]}  Nxc5 {[%clk 0:00:36]} 38. Rc1 {[%clk 0:00:10]}  Qb4 {[%clk 0:00:31]} 39. Kg2 {[%clk 0:00:05]}  a4 {[%clk 0:00:31]} 40. e6 {[%clk 0:00:05]}  fxe6 {[%clk 0:00:25]} 41. Rc4 {[%clk 0:00:04]}  Qxb5 {[%clk 0:00:24]} 42. Ne5 {[%clk 0:00:04]}  Qb6 {[%clk 0:00:20]} 43. Rf4 {[%clk 0:00:02]}  Kg8 {[%clk 0:00:18]} 44. Bc4 {[%clk 0:00:01]}  a3 {[%clk 0:00:16]} 45. h4 {[%clk 0:00:01]}  Qd6 {[%clk 0:00:15]} 46. Ng6 {[%clk 0:00:01]}  h5 {[%clk 0:00:14]} 47. Rf8+ {[%clk 0:00:01]}  Qxf8 {[%clk 0:00:12]} 48. Nxf8 {[%clk 0:00:02]}  Kxf8 {[%clk 0:00:13]} 49. f3 {[%clk 0:00:02]}  Ke7 {[%clk 0:00:13]} 50. Kf2 {[%clk 0:00:02]}  Kf6 {[%clk 0:00:12]} 51. Ke3 {[%clk 0:00:03]}  e5 {[%clk 0:00:13]} 52. Kd2 {[%clk 0:00:03]}  g5 {[%clk 0:00:12]} 53. hxg5+ {[%clk 0:00:03]}  Kxg5 {[%clk 0:00:12]} 54. Kc2 {[%clk 0:00:03]}  e4 {[%clk 0:00:09]} 55. fxe4 {[%clk 0:00:02]}  Nxe4 {[%clk 0:00:09]} 56. Be2 {[%clk 0:00:03]}  a2 {[%clk 0:00:08]} 57. Kb2 {[%clk 0:00:03]}  Nc3 {[%clk 0:00:08]} 58. Bc4 {[%clk 0:00:01]}  Kg4 {[%clk 0:00:08]} 59. Bf7 {[%clk 0:00:02]}  Kxg3 {[%clk 0:00:02]} 60. Bxh5 {[%clk 0:00:02]}  Ne4 {[%clk 0:00:02]} 61. Bf7 {[%clk 0:00:02]}  Nf2 {[%clk 0:00:03]} 62. Bxa2 {[%clk 0:00:02]} 1/2-1/2


[Site "https://www.chess.com"]

[Event "Titled Tuesday Blitz December 13 Early 2022"]
[White "Maksimenko, Viktor"]
[Black "Farmani Anosheh, Armin"]
[WhiteFideId "13710478"]
[BlackFideId "24613240"]
[WhiteElo "2277"]
[BlackElo "2289"]
[Result "1-0"]
[Round "07"]
[TimeControl "180+1"]
[Date "2022.12.14"]
[WhiteClock "0:01:21"]
[BlackClock "0:00:15"]

1. d4 {[%clk 0:03:00]}  Nf6 {[%clk 0:02:59]} 2. c4 {[%clk 0:03:00]}  e6 {[%clk 0:03:00]} 3. Nf3 {[%clk 0:03:00]}  d5 {[%clk 0:02:58]} 4. g3 {[%clk 0:03:00]}  Bb4+ {[%clk 0:02:57]} 5. Bd2 {[%clk 0:03:00]}  Bd6 {[%clk 0:02:58]} 6. Bg2 {[%clk 0:03:00]}  O-O {[%clk 0:02:58]} 7. O-O {[%clk 0:03:01]}  c6 {[%clk 0:02:43]} 8. Bc3 {[%clk 0:02:59]}  Ne4 {[%clk 0:02:40]} 9. Nbd2 {[%clk 0:02:58]}  Nxc3 {[%clk 0:02:40]} 10. bxc3 {[%clk 0:02:59]}  Nd7 {[%clk 0:02:23]} 11. e4 {[%clk 0:02:59]}  dxc4 {[%clk 0:01:45]} 12. Nxc4 {[%clk 0:02:57]}  Be7 {[%clk 0:01:44]} 13. Re1 {[%clk 0:02:48]}  c5 {[%clk 0:01:43]} 14. d5 {[%clk 0:02:46]}  exd5 {[%clk 0:01:43]} 15. exd5 {[%clk 0:02:46]}  b5 {[%clk 0:01:19]} 16. d6 {[%clk 0:02:43]}  Bf6 {[%clk 0:01:19]} 17. Nfe5 {[%clk 0:02:39]}  bxc4 {[%clk 0:01:19]} 18. Nc6 {[%clk 0:02:39]}  Qb6 {[%clk 0:01:05]} 19. Ne7+ {[%clk 0:02:40]}  Kh8 {[%clk 0:01:00]} 20. Bxa8 {[%clk 0:02:39]}  Bxc3 {[%clk 0:00:48]} 21. Nd5 {[%clk 0:02:26]}  Qa5 {[%clk 0:00:44]} 22. Nxc3 {[%clk 0:02:24]}  Qxc3 {[%clk 0:00:45]} 23. Re3 {[%clk 0:02:21]}  Qd4 {[%clk 0:00:31]} 24. Bg2 {[%clk 0:02:15]}  Nb6 {[%clk 0:00:26]} 25. Rc1 {[%clk 0:02:13]}  Be6 {[%clk 0:00:25]} 26. Re4 {[%clk 0:02:00]}  Qxd1+ {[%clk 0:00:20]} 27. Rxd1 {[%clk 0:02:01]}  Rd8 {[%clk 0:00:20]} 28. Re5 {[%clk 0:01:56]}  Nd7 {[%clk 0:00:20]} 29. Re3 {[%clk 0:01:56]}  g6 {[%clk 0:00:20]} 30. Bf1 {[%clk 0:01:53]}  Nb6 {[%clk 0:00:19]} 31. Rc3 {[%clk 0:01:51]}  Kg7 {[%clk 0:00:19]} 32. Rcc1 {[%clk 0:01:50]}  Kf6 {[%clk 0:00:19]} 33. a4 {[%clk 0:01:50]}  Nxa4 {[%clk 0:00:19]} 34. Bxc4 {[%clk 0:01:50]}  Nb2 {[%clk 0:00:17]} 35. Bxe6 {[%clk 0:01:39]}  Nxd1 {[%clk 0:00:18]} 36. Bb3 {[%clk 0:01:33]}  Rxd6 {[%clk 0:00:18]} 37. Bxd1 {[%clk 0:01:32]}  Ke5 {[%clk 0:00:15]} 38. Bb3 {[%clk 0:01:32]}  Rc6 {[%clk 0:00:14]} 39. Bxf7 {[%clk 0:01:32]}  Kd4 {[%clk 0:00:14]} 40. Bc4 {[%clk 0:01:29]}  Rb6 {[%clk 0:00:14]} 41. Bf1 {[%clk 0:01:26]}  Rb4 {[%clk 0:00:14]} 42. f4 {[%clk 0:01:25]}  c4 {[%clk 0:00:14]} 43. Kf2 {[%clk 0:01:26]}  Rb2+ {[%clk 0:00:13]} 44. Be2 {[%clk 0:01:21]}  c3 {[%clk 0:00:13]} 45. Kf3 {[%clk 0:01:22]}  Rd2 {[%clk 0:00:13]} 46. Rd1 {[%clk 0:01:20]}  a5 {[%clk 0:00:11]} 47. Rxd2+ {[%clk 0:01:21]}  cxd2 {[%clk 0:00:12]} 48. Bd1 {[%clk 0:01:21]}  Kd3 {[%clk 0:00:13]} 49. g4 {[%clk 0:01:22]}  Kd4 {[%clk 0:00:12]} 50. h4 {[%clk 0:01:18]}  Kd3 {[%clk 0:00:10]} 51. f5 {[%clk 0:01:18]}  gxf5 {[%clk 0:00:10]} 52. gxf5 {[%clk 0:01:19]}  Kc3 {[%clk 0:00:11]} 53. f6 {[%clk 0:01:19]}  Kb2 {[%clk 0:00:12]} 54. f7 {[%clk 0:01:20]}  Kc1 {[%clk 0:00:13]} 55. Ke2 {[%clk 0:01:20]}  a4 {[%clk 0:00:13]} 56. f8=Q {[%clk 0:01:20]}  a3 {[%clk 0:00:14]} 57. Qxa3+ {[%clk 0:01:21]}  Kb1 {[%clk 0:00:15]} 58. Qb3+ {[%clk 0:01:21]} 1-0


[Site "https://www.chess.com"]

[Event "Titled Tuesday Blitz December 13 Early 2022"]
[White "Manukyan, Sargis A."]
[Black "Sargissyan, Sargis"]
[WhiteFideId "13303970"]
[BlackFideId "13303210"]
[WhiteElo "2187"]
[BlackElo "2109"]
[Result "1-0"]
[Round "07"]
[TimeControl "180+1"]
[Date "2022.12.14"]
[WhiteClock "0:00:09"]
[BlackClock "0:00:01"]

1. Nf3 {[%clk 0:02:53]}  Nf6 {[%clk 0:02:59]} 2. c4 {[%clk 0:02:53]}  g6 {[%clk 0:02:57]} 3. b4 {[%clk 0:02:54]}  Bg7 {[%clk 0:02:58]} 4. Bb2 {[%clk 0:02:54]}  O-O {[%clk 0:02:58]} 5. g3 {[%clk 0:02:55]}  d6 {[%clk 0:02:43]} 6. d4 {[%clk 0:02:49]}  e5 {[%clk 0:02:36]} 7. dxe5 {[%clk 0:02:32]}  Ng4 {[%clk 0:02:36]} 8. Nc3 {[%clk 0:02:32]}  Nxe5 {[%clk 0:02:33]} 9. Nxe5 {[%clk 0:02:30]}  dxe5 {[%clk 0:02:25]} 10. Qxd8 {[%clk 0:02:19]}  Rxd8 {[%clk 0:02:24]} 11. Nd5 {[%clk 0:02:20]}  Rd7 {[%clk 0:01:29]} 12. Bh3 {[%clk 0:02:15]}  f5 {[%clk 0:01:29]} 13. e4 {[%clk 0:02:09]}  c6 {[%clk 0:01:28]} 14. Ne3 {[%clk 0:02:07]}  Rf7 {[%clk 0:01:26]} 15. O-O-O {[%clk 0:01:56]}  Rf8 {[%clk 0:01:17]} 16. exf5 {[%clk 0:01:46]}  gxf5 {[%clk 0:01:14]} 17. c5 {[%clk 0:01:38]}  Na6 {[%clk 0:01:02]} 18. a3 {[%clk 0:01:36]}  Nc7 {[%clk 0:01:00]} 19. Nc4 {[%clk 0:01:27]}  e4 {[%clk 0:00:53]} 20. Nd6 {[%clk 0:01:20]}  Nd5 {[%clk 0:00:50]} 21. Bf1 {[%clk 0:01:03]}  Rb8 {[%clk 0:00:33]} 22. Nxc8 {[%clk 0:00:49]}  Rbxc8 {[%clk 0:00:32]} 23. Bc4 {[%clk 0:00:48]}  Rcd8 {[%clk 0:00:23]} 24. Bxg7 {[%clk 0:00:38]}  Kxg7 {[%clk 0:00:23]} 25. Rd2 {[%clk 0:00:37]}  f4 {[%clk 0:00:22]} 26. Re1 {[%clk 0:00:28]}  e3 {[%clk 0:00:20]} 27. fxe3 {[%clk 0:00:26]}  fxe3 {[%clk 0:00:18]} 28. Rd3 {[%clk 0:00:22]}  Rf2 {[%clk 0:00:18]} 29. Bxd5 {[%clk 0:00:20]}  cxd5 {[%clk 0:00:16]} 30. Rexe3 {[%clk 0:00:18]}  Kf6 {[%clk 0:00:09]} 31. Rf3+ {[%clk 0:00:16]}  Rxf3 {[%clk 0:00:09]} 32. Rxf3+ {[%clk 0:00:17]}  Ke6 {[%clk 0:00:10]} 33. Kd2 {[%clk 0:00:16]}  Rd7 {[%clk 0:00:07]} 34. Kd3 {[%clk 0:00:16]}  Ke5 {[%clk 0:00:08]} 35. Re3+ {[%clk 0:00:16]}  Kf5 {[%clk 0:00:08]} 36. Kd4 {[%clk 0:00:15]}  Kg4 {[%clk 0:00:08]} 37. Re5 {[%clk 0:00:14]}  h5 {[%clk 0:00:02]} 38. b5 {[%clk 0:00:12]}  Rf7 {[%clk 0:00:01]} 39. Kxd5 {[%clk 0:00:09]}  Rf1 {[%clk 0:00:01]} 40. c6 {[%clk 0:00:09]} 1-0


[Site "https://www.chess.com"]

[Event "Titled Tuesday Blitz December 13 Early 2022"]
[White "Migot, Tangi"]
[Black "Donskov, Anatoly"]
[WhiteFideId "662445"]
[BlackFideId "24143413"]
[WhiteElo "2570"]
[BlackElo "2219"]
[Result "0-1"]
[Round "07"]
[TimeControl "180+1"]
[Date "2022.12.14"]
[WhiteClock "0:00:13"]
[BlackClock "0:00:20"]

1. d4 {[%clk 0:03:00]}  d5 {[%clk 0:02:59]} 2. Nf3 {[%clk 0:03:00]}  Nf6 {[%clk 0:02:59]} 3. g3 {[%clk 0:03:00]}  Bf5 {[%clk 0:02:59]} 4. Bg2 {[%clk 0:03:00]}  e6 {[%clk 0:02:58]} 5. O-O {[%clk 0:03:01]}  c6 {[%clk 0:02:57]} 6. c4 {[%clk 0:03:01]}  h6 {[%clk 0:02:55]} 7. Nc3 {[%clk 0:03:01]}  Nbd7 {[%clk 0:02:54]} 8. Nd2 {[%clk 0:02:59]}  Be7 {[%clk 0:02:48]} 9. e4 {[%clk 0:02:59]}  dxe4 {[%clk 0:02:48]} 10. Ndxe4 {[%clk 0:03:00]}  Nxe4 {[%clk 0:02:45]} 11. Nxe4 {[%clk 0:03:01]}  O-O {[%clk 0:02:43]} 12. Bf4 {[%clk 0:03:01]}  Nf6 {[%clk 0:02:37]} 13. Nc3 {[%clk 0:02:47]}  Qb6 {[%clk 0:02:27]} 14. Qd2 {[%clk 0:02:47]}  Rfd8 {[%clk 0:02:26]} 15. Rad1 {[%clk 0:02:47]}  Bg4 {[%clk 0:02:18]} 16. f3 {[%clk 0:02:42]}  Rxd4 {[%clk 0:02:11]} 17. Qxd4 {[%clk 0:02:30]}  Bc5 {[%clk 0:02:10]} 18. Be3 {[%clk 0:02:27]}  Bxd4 {[%clk 0:02:05]} 19. Bxd4 {[%clk 0:02:28]}  c5 {[%clk 0:01:50]} 20. Bxf6 {[%clk 0:02:24]}  Bf5 {[%clk 0:01:42]} 21. Be5 {[%clk 0:02:15]}  Qxb2 {[%clk 0:01:41]} 22. Rf2 {[%clk 0:02:09]}  Qb4 {[%clk 0:01:33]} 23. Ne4 {[%clk 0:01:52]}  Qxc4 {[%clk 0:01:23]} 24. Nd6 {[%clk 0:01:43]}  Qa4 {[%clk 0:01:23]} 25. Rfd2 {[%clk 0:01:42]}  Bg6 {[%clk 0:01:03]} 26. f4 {[%clk 0:01:39]}  c4 {[%clk 0:00:57]} 27. Rc1 {[%clk 0:01:22]}  Bd3 {[%clk 0:00:53]} 28. Nxb7 {[%clk 0:01:04]}  Rc8 {[%clk 0:00:50]} 29. Rxd3 {[%clk 0:00:56]}  cxd3 {[%clk 0:00:39]} 30. Rxc8+ {[%clk 0:00:57]}  Kh7 {[%clk 0:00:39]} 31. Be4+ {[%clk 0:00:57]}  Qxe4 {[%clk 0:00:38]} 32. Nc5 {[%clk 0:00:30]}  Qe1+ {[%clk 0:00:34]} 33. Kg2 {[%clk 0:00:29]}  Qe2+ {[%clk 0:00:29]} 34. Kh3 {[%clk 0:00:27]}  d2 {[%clk 0:00:19]} 35. Nd7 {[%clk 0:00:27]}  h5 {[%clk 0:00:19]} 36. Nf8+ {[%clk 0:00:14]}  Kh6 {[%clk 0:00:20]} 37. Rd8 {[%clk 0:00:14]}  d1=Q {[%clk 0:00:19]} 38. Rxd1 {[%clk 0:00:13]}  Qxd1 {[%clk 0:00:20]} 0-1


[Site "https://www.chess.com"]

[Event "Titled Tuesday Blitz December 13 Early 2022"]
[White "Mihajlov, Sebastian"]
[Black "Bettalli, Francesco"]
[WhiteFideId "1512110"]
[BlackFideId "2816453"]
[WhiteElo "2464"]
[BlackElo "2216"]
[Result "1-0"]
[Round "07"]
[TimeControl "180+1"]
[Date "2022.12.14"]
[WhiteClock "0:02:02"]
[BlackClock "0:02:29"]

1. e4 {[%clk 0:03:00]}  e5 {[%clk 0:02:59]} 2. Nc3 {[%clk 0:02:59]}  Bc5 {[%clk 0:02:59]} 3. Bc4 {[%clk 0:03:00]}  Nf6 {[%clk 0:02:59]} 4. d3 {[%clk 0:03:01]}  h6 {[%clk 0:02:57]} 5. f4 {[%clk 0:03:01]}  d6 {[%clk 0:02:57]} 6. Nf3 {[%clk 0:03:01]}  Bg4 {[%clk 0:02:55]} 7. h3 {[%clk 0:02:59]}  Bxf3 {[%clk 0:02:55]} 8. Qxf3 {[%clk 0:03:00]}  Nc6 {[%clk 0:02:56]} 9. Ne2 {[%clk 0:02:56]}  Ne7 {[%clk 0:02:54]} 10. c3 {[%clk 0:02:52]}  Bb6 {[%clk 0:02:50]} 11. Bb3 {[%clk 0:02:52]}  Ng6 {[%clk 0:02:50]} 12. f5 {[%clk 0:02:47]}  Ne7 {[%clk 0:02:50]} 13. g4 {[%clk 0:02:45]}  Qd7 {[%clk 0:02:50]} 14. Bd2 {[%clk 0:02:44]}  O-O-O {[%clk 0:02:48]} 15. O-O-O {[%clk 0:02:44]}  d5 {[%clk 0:02:48]} 16. Ng3 {[%clk 0:02:44]}  dxe4 {[%clk 0:02:46]} 17. dxe4 {[%clk 0:02:45]}  Qd3 {[%clk 0:02:46]} 18. Rhf1 {[%clk 0:02:44]}  Qxf3 {[%clk 0:02:44]} 19. Rxf3 {[%clk 0:02:45]}  Rhf8 {[%clk 0:02:41]} 20. g5 {[%clk 0:02:20]}  hxg5 {[%clk 0:02:38]} 21. Bxg5 {[%clk 0:02:21]}  Rxd1+ {[%clk 0:02:38]} 22. Kxd1 {[%clk 0:02:22]}  Nc6 {[%clk 0:02:38]} 23. Bxf6 {[%clk 0:02:12]}  gxf6 {[%clk 0:02:39]} 24. Nh5 {[%clk 0:02:12]}  Na5 {[%clk 0:02:38]} 25. Nxf6 {[%clk 0:02:10]}  Nxb3 {[%clk 0:02:37]} 26. axb3 {[%clk 0:02:10]}  c6 {[%clk 0:02:36]} 27. Rg3 {[%clk 0:02:09]}  Bd8 {[%clk 0:02:35]} 28. Nh7 {[%clk 0:02:06]}  Rh8 {[%clk 0:02:35]} 29. Rg7 {[%clk 0:02:06]}  f6 {[%clk 0:02:33]} 30. Ke2 {[%clk 0:02:06]}  a5 {[%clk 0:02:32]} 31. Kf3 {[%clk 0:02:07]}  b5 {[%clk 0:02:32]} 32. Kg4 {[%clk 0:02:07]}  c5 {[%clk 0:02:32]} 33. Kh5 {[%clk 0:02:05]}  c4 {[%clk 0:02:32]} 34. bxc4 {[%clk 0:02:05]}  b4 {[%clk 0:02:33]} 35. cxb4 {[%clk 0:02:05]}  axb4 {[%clk 0:02:33]} 36. Kg6 {[%clk 0:02:05]}  Re8 {[%clk 0:02:30]} 37. Nxf6 {[%clk 0:02:03]}  Rh8 {[%clk 0:02:31]} 38. Nh7 {[%clk 0:02:01]}  Bb6 {[%clk 0:02:29]} 39. b3 {[%clk 0:02:01]}  Be3 {[%clk 0:02:29]} 40. f6 {[%clk 0:02:01]}  Kd8 {[%clk 0:02:28]} 41. f7 {[%clk 0:02:02]}  Ke7 {[%clk 0:02:29]} 42. f8=Q+ {[%clk 0:02:02]} 1-0


[Site "https://www.chess.com"]

[Event "Titled Tuesday Blitz December 13 Early 2022"]
[White "Mikhailovsky, Vladimir"]
[Black "Khandelwal, Ankush"]
[WhiteFideId "34105414"]
[BlackFideId "413470"]
[WhiteElo "2295"]
[BlackElo "2271"]
[Result "0-1"]
[Round "07"]
[TimeControl "180+1"]
[Date "2022.12.14"]
[WhiteClock "0:00:01"]
[BlackClock "0:00:15"]

1. e4 {[%clk 0:02:59]}  c5 {[%clk 0:02:57]} 2. Nf3 {[%clk 0:02:59]}  d6 {[%clk 0:02:57]} 3. d4 {[%clk 0:02:58]}  cxd4 {[%clk 0:02:58]} 4. Qxd4 {[%clk 0:02:59]}  Nc6 {[%clk 0:02:57]} 5. Bb5 {[%clk 0:02:59]}  a6 {[%clk 0:02:53]} 6. Bxc6+ {[%clk 0:02:59]}  bxc6 {[%clk 0:02:54]} 7. Qa4 {[%clk 0:02:59]}  Bd7 {[%clk 0:02:53]} 8. c4 {[%clk 0:03:00]}  c5 {[%clk 0:02:17]} 9. Qc2 {[%clk 0:02:59]}  e6 {[%clk 0:02:07]} 10. e5 {[%clk 0:02:54]}  Ne7 {[%clk 0:01:51]} 11. O-O {[%clk 0:02:32]}  Ng6 {[%clk 0:01:39]} 12. exd6 {[%clk 0:02:25]}  Bxd6 {[%clk 0:01:40]} 13. Rd1 {[%clk 0:02:25]}  Qc7 {[%clk 0:01:22]} 14. Nc3 {[%clk 0:02:24]}  Bc6 {[%clk 0:01:12]} 15. Ne4 {[%clk 0:02:22]}  Be7 {[%clk 0:01:06]} 16. h4 {[%clk 0:01:45]}  h6 {[%clk 0:01:04]} 17. h5 {[%clk 0:01:09]}  Ne5 {[%clk 0:01:01]} 18. Qe2 {[%clk 0:00:28]}  Nxf3+ {[%clk 0:00:56]} 19. gxf3 {[%clk 0:00:21]}  O-O {[%clk 0:00:56]} 20. Kg2 {[%clk 0:00:09]}  Qe5 {[%clk 0:00:54]} 21. Rh1 {[%clk 0:00:07]}  Rfd8 {[%clk 0:00:45]} 22. Rh3 {[%clk 0:00:05]}  Rd4 {[%clk 0:00:36]} 23. Rg3 {[%clk 0:00:03]}  Qxh5 {[%clk 0:00:28]} 24. Be3 {[%clk 0:00:03]}  Rxe4 {[%clk 0:00:26]} 25. Rh1 {[%clk 0:00:02]}  Rh4 {[%clk 0:00:25]} 26. Rxh4 {[%clk 0:00:02]}  Qxh4 {[%clk 0:00:26]} 27. Qd2 {[%clk 0:00:01]}  Rd8 {[%clk 0:00:20]} 28. Qc1 {[%clk 0:00:01]}  Rd3 {[%clk 0:00:17]} 29. Bxh6 {[%clk 0:00:01]}  Rxf3 {[%clk 0:00:14]} 30. Rxg7+ {[%clk 0:00:01]}  Kh8 {[%clk 0:00:15]} 31. Rg8+ {[%clk 0:00:01]}  Kxg8 {[%clk 0:00:15]} 0-1


[Site "https://www.chess.com"]

[Event "Titled Tuesday Blitz December 13 Early 2022"]
[White "Mkrtchian, Lilit"]
[Black "Sanchez, Robert"]
[WhiteFideId "13300601"]
[BlackFideId "2034360"]
[WhiteElo "2316"]
[BlackElo "2358"]
[Result "1-0"]
[Round "07"]
[TimeControl "180+1"]
[Date "2022.12.14"]
[WhiteClock "0:00:19"]
[BlackClock "0:01:28"]

1. Nf3 {[%clk 0:03:00]}  d5 {[%clk 0:02:58]} 2. g3 {[%clk 0:03:00]}  Nf6 {[%clk 0:02:55]} 3. Bg2 {[%clk 0:03:00]}  Nc6 {[%clk 0:02:54]} 4. d4 {[%clk 0:02:58]}  Bf5 {[%clk 0:02:54]} 5. O-O {[%clk 0:02:57]}  Qd7 {[%clk 0:02:54]} 6. c4 {[%clk 0:02:22]}  dxc4 {[%clk 0:02:48]} 7. Ne5 {[%clk 0:01:58]}  Qd6 {[%clk 0:02:32]} 8. Bf4 {[%clk 0:01:24]}  Nh5 {[%clk 0:02:28]} 9. Nxf7 {[%clk 0:01:21]}  Qb4 {[%clk 0:02:11]} 10. Nxh8 {[%clk 0:01:15]}  Nxf4 {[%clk 0:02:11]} 11. gxf4 {[%clk 0:01:14]}  O-O-O {[%clk 0:02:10]} 12. d5 {[%clk 0:01:03]}  e6 {[%clk 0:02:02]} 13. Nf7 {[%clk 0:00:58]}  Rd7 {[%clk 0:02:02]} 14. e4 {[%clk 0:00:31]}  Bg6 {[%clk 0:01:57]} 15. Ne5 {[%clk 0:00:29]}  Nxe5 {[%clk 0:01:57]} 16. fxe5 {[%clk 0:00:30]}  Qxb2 {[%clk 0:01:49]} 17. Nd2 {[%clk 0:00:30]}  c3 {[%clk 0:01:47]} 18. Nc4 {[%clk 0:00:29]}  Qb4 {[%clk 0:01:46]} 19. Qb3 {[%clk 0:00:27]}  Qe7 {[%clk 0:01:40]} 20. dxe6 {[%clk 0:00:25]}  Rd4 {[%clk 0:01:32]} 21. Rad1 {[%clk 0:00:24]}  c5 {[%clk 0:01:28]} 22. Nd6+ {[%clk 0:00:21]}  Kb8 {[%clk 0:01:28]} 23. Qxc3 {[%clk 0:00:19]} 1-0


[Site "https://www.chess.com"]

[Event "Titled Tuesday Blitz December 13 Early 2022"]
[White "Moiseenko, Alexander"]
[Black "Lehtosaari, Mauri"]
[WhiteFideId "14102560"]
[BlackFideId "501999"]
[WhiteElo "2577"]
[BlackElo "2512"]
[Result "1-0"]
[Round "07"]
[TimeControl "180+1"]
[Date "2022.12.14"]
[WhiteClock "0:02:19"]
[BlackClock "0:01:21"]

1. d4 {[%clk 0:02:56]}  d5 {[%clk 0:02:56]} 2. c4 {[%clk 0:02:56]}  c6 {[%clk 0:02:55]} 3. Nc3 {[%clk 0:02:57]}  Nf6 {[%clk 0:02:55]} 4. Nf3 {[%clk 0:02:57]}  dxc4 {[%clk 0:02:54]} 5. a4 {[%clk 0:02:57]}  Bf5 {[%clk 0:02:53]} 6. Nh4 {[%clk 0:02:57]}  e6 {[%clk 0:02:53]} 7. Nxf5 {[%clk 0:02:57]}  exf5 {[%clk 0:02:54]} 8. e3 {[%clk 0:02:58]}  Bb4 {[%clk 0:02:53]} 9. Bxc4 {[%clk 0:02:58]}  O-O {[%clk 0:02:53]} 10. Qc2 {[%clk 0:02:58]}  g6 {[%clk 0:02:52]} 11. O-O {[%clk 0:02:58]}  Nbd7 {[%clk 0:02:52]} 12. f3 {[%clk 0:02:58]}  Rc8 {[%clk 0:02:44]} 13. Ba2 {[%clk 0:02:57]}  c5 {[%clk 0:02:43]} 14. Qf2 {[%clk 0:02:57]}  cxd4 {[%clk 0:02:43]} 15. exd4 {[%clk 0:02:57]}  Nb6 {[%clk 0:02:20]} 16. Bg5 {[%clk 0:02:51]}  Be7 {[%clk 0:02:02]} 17. Rfe1 {[%clk 0:02:30]}  Nfd5 {[%clk 0:01:55]} 18. Rxe7 {[%clk 0:02:22]}  Nxe7 {[%clk 0:01:51]} 19. Re1 {[%clk 0:02:21]}  Rc7 {[%clk 0:01:42]} 20. Qh4 {[%clk 0:02:21]}  Re8 {[%clk 0:01:21]} 21. Bxf7+ {[%clk 0:02:19]} 1-0


[Site "https://www.chess.com"]